[Event "*** Titled Tuesday Blitz"]
[Site "Chess.com"]
[Date "2019.11.05"]
[Round "4"]
[White "politeplayer"]
[Black "GelmanAlexander"]
[Result "0-1"]
[WhiteElo "2222"]
[BlackElo "2494"]
[TimeControl "180+2"]
[EndTime "13:52:19 PST"]
[Termination "GelmanAlexander won by resignation"]

1. e4 {[%clk 0:02:59.1]} 1... c5 {[%clk 0:03:00.2]} 2. Nf3 {[%clk 0:02:59.1]}
2... e6 {[%clk 0:03:01.1]} 3. d4 {[%clk 0:03:00.3]} 3... cxd4 {[%clk 0:03:02.2]}
4. Nxd4 {[%clk 0:03:01.8]} 4... d6 {[%clk 0:03:03.2]} 5. Nc3 {[%clk 0:03:02.3]}
5... a6 {[%clk 0:03:03.5]} 6. Be2 {[%clk 0:03:00.6]} 6... Nf6 {[%clk 0:03:03]}
7. O-O {[%clk 0:03:00]} 7... Be7 {[%clk 0:03:02.2]} 8. Kh1 {[%clk 0:02:59.4]}
8... Qc7 {[%clk 0:03:01.6]} 9. Be3 {[%clk 0:02:59]} 9... Nc6 {[%clk 0:03:02.8]}
10. f4 {[%clk 0:02:58.7]} 10... Bd7 {[%clk 0:03:03]} 11. Nb3 {[%clk 0:02:57]}
11... b5 {[%clk 0:03:02.4]} 12. Bf3 {[%clk 0:02:43.1]} 12... Rc8 {[%clk
0:02:58.1]} 13. Qe1 {[%clk 0:02:32.8]} 13... h5 {[%clk 0:02:49.3]} 14. f5 {[%clk
0:02:12.6]} 14... Ne5 {[%clk 0:02:43.8]} 15. fxe6 {[%clk 0:01:58.5]} 15... fxe6
{[%clk 0:02:25.6]} 16. Nd4 {[%clk 0:01:45.3]} 16... Nc4 {[%clk 0:01:22.6]} 17.
Bg5 {[%clk 0:01:25.4]} 17... Nxb2 {[%clk 0:01:01.9]} 18. Nce2 {[%clk 0:01:26.1]}
18... Qc5 {[%clk 0:00:54.5]} 19. Qg3 {[%clk 0:00:52.7]} 19... Nc4 {[%clk
0:00:43.8]} 20. Bxf6 {[%clk 0:00:51]} 20... Bxf6 {[%clk 0:00:44.4]} 21. Qg6+
{[%clk 0:00:51.3]} 21... Ke7 {[%clk 0:00:45.1]} 22. c3 {[%clk 0:00:46.4]} 22...
Ne5 {[%clk 0:00:44.8]} 23. Qg3 {[%clk 0:00:42.9]} 23... h4 {[%clk 0:00:44.2]}
24. Qf2 {[%clk 0:00:41.2]} 24... h3 {[%clk 0:00:43.8]} 25. g3 {[%clk 0:00:32.3]}
25... Rhf8 {[%clk 0:00:42]} 26. Rac1 {[%clk 0:00:27]} 26... g5 {[%clk
0:00:41.2]} 27. Qe3 {[%clk 0:00:21.7]} 27... g4 {[%clk 0:00:40]} 28. Nf4 {[%clk
0:00:11.2]} 28... gxf3 {[%clk 0:00:38.9]} 29. Nf5+ {[%clk 0:00:11.8]} 29... exf5
{[%clk 0:00:37.6]} 30. Nd5+ {[%clk 0:00:12.6]} 30... Kd8 {[%clk 0:00:38.9]} 31.
Qh6 {[%clk 0:00:12.1]} 31... Be7 {[%clk 0:00:29.6]} 32. Nxe7 {[%clk 0:00:12.4]}
32... Kxe7 {[%clk 0:00:29.9]} 33. Rcd1 {[%clk 0:00:11.8]} 33... fxe4 {[%clk
0:00:25.3]} 34. Qg5+ {[%clk 0:00:09.3]} 34... Rf6 {[%clk 0:00:26.5]} 35. Rd4
{[%clk 0:00:07.3]} 35... f2 {[%clk 0:00:20.5]} 36. Rxe4 {[%clk 0:00:05.9]} 36...
Bc6 {[%clk 0:00:21.4]} 37. Qg7+ {[%clk 0:00:05]} 37... Rf7 {[%clk 0:00:21.5]}
38. Qg5+ {[%clk 0:00:05.9]} 38... Kd7 {[%clk 0:00:22.9]} 0-1

[Event "*** Titled Tuesday Blitz"]
[Site "Chess.com"]
[Date "2019.11.05"]
[Round "4"]
[White "FearNoEvil12"]
[Black "colegiodemadrid"]
[Result "0-1"]
[WhiteElo "1962"]
[BlackElo "2410"]
[TimeControl "180+2"]
[EndTime "13:52:19 PST"]
[Termination "colegiodemadrid won by resignation"]

1. e4 {[%clk 0:03:01.9]} 1... c5 {[%clk 0:02:59.7]} 2. Nc3 {[%clk 0:03:02.3]}
2... e6 {[%clk 0:03:00.2]} 3. f4 {[%clk 0:03:03.3]} 3... a6 {[%clk 0:03:00.4]}
4. a4 {[%clk 0:03:00.9]} 4... Nc6 {[%clk 0:03:01.6]} 5. d3 {[%clk 0:03:01.2]}
5... d5 {[%clk 0:03:02.6]} 6. Nf3 {[%clk 0:03:02.6]} 6... Nf6 {[%clk 0:03:02.8]}
7. Qe2 {[%clk 0:03:02.3]} 7... h5 {[%clk 0:03:02.4]} 8. g3 {[%clk 0:03:01.5]}
8... dxe4 {[%clk 0:02:58.6]} 9. dxe4 {[%clk 0:03:00.4]} 9... Nd4 {[%clk
0:02:59.5]} 10. Nxd4 {[%clk 0:02:57.7]} 10... cxd4 {[%clk 0:03:01.4]} 11. Nd1
{[%clk 0:02:58.2]} 11... Bb4+ {[%clk 0:02:55.8]} 12. c3 {[%clk 0:02:55.5]} 12...
dxc3 {[%clk 0:02:55]} 13. bxc3 {[%clk 0:02:55.6]} 13... Bc5 {[%clk 0:02:55.7]}
14. Bg2 {[%clk 0:02:52.3]} 14... Qc7 {[%clk 0:02:50.4]} 15. Be3 {[%clk
0:02:48.2]} 15... Bd7 {[%clk 0:02:47.5]} 16. O-O {[%clk 0:02:45.3]} 16... Ng4
{[%clk 0:02:40.1]} 17. Bxc5 {[%clk 0:02:44.5]} 17... Qxc5+ {[%clk 0:02:38.5]}
18. Kh1 {[%clk 0:02:45.9]} 18... e5 {[%clk 0:02:33.6]} 19. h3 {[%clk 0:02:40.7]}
19... exf4 {[%clk 0:02:32.9]} 20. gxf4 {[%clk 0:02:35.9]} 20... Be6 {[%clk
0:02:32.7]} 21. Rf3 {[%clk 0:02:22.8]} 21... Bc4 {[%clk 0:02:27.3]} 22. Qe1
{[%clk 0:02:21.4]} 22... Rd8 {[%clk 0:02:20]} 23. Ne3 {[%clk 0:02:21.4]} 23...
Nxe3 {[%clk 0:02:18.4]} 24. Qxe3 {[%clk 0:02:21.7]} 24... Qxe3 {[%clk 0:02:18]}
25. Rxe3 {[%clk 0:02:22]} 25... Ke7 {[%clk 0:02:16.6]} 26. Rb1 {[%clk
0:02:21.6]} 26... b5 {[%clk 0:02:16.4]} 27. axb5 {[%clk 0:02:21.8]} 27... axb5
{[%clk 0:02:18.2]} 28. e5 {[%clk 0:02:18.7]} 28... Rd2 {[%clk 0:02:15.9]} 29.
Bf1 {[%clk 0:02:16.4]} 29... Bd5+ {[%clk 0:02:13.6]} 30. Kg1 {[%clk 0:02:16]}
30... Rh6 {[%clk 0:02:09.9]} 31. Rg3 {[%clk 0:02:11.7]} 31... Rc6 {[%clk
0:01:59.5]} 32. Rxb5 {[%clk 0:02:10.3]} 32... Rd1 {[%clk 0:01:56.9]} 33. Rb4
{[%clk 0:01:48.5]} 33... Bc4 {[%clk 0:01:49.8]} 34. Rf3 {[%clk 0:01:48.2]} 34...
Be2 {[%clk 0:01:43.5]} 35. Rf2 {[%clk 0:01:43.7]} 35... Bxf1 {[%clk 0:01:44.1]}
36. Rxf1 {[%clk 0:01:44.1]} 36... Rd3 {[%clk 0:01:45.7]} 37. c4 {[%clk
0:01:37.1]} 37... Rxh3 {[%clk 0:01:44.2]} 38. Rc1 {[%clk 0:01:37.8]} 38... Ke6
{[%clk 0:01:39.2]} 39. c5 {[%clk 0:01:36.8]} 39... Rd3 {[%clk 0:01:37.9]} 40.
Rb7 {[%clk 0:01:34.6]} 40... Rd5 {[%clk 0:01:35]} 41. Rb5 {[%clk 0:01:31.6]}
41... Rd4 {[%clk 0:01:35.4]} 42. Rb6 {[%clk 0:01:20.1]} 42... Kd5 {[%clk
0:01:31.5]} 43. Rxc6 {[%clk 0:01:07.3]} 43... Kxc6 {[%clk 0:01:31.6]} 44. Rf1
{[%clk 0:01:07]} 44... Kxc5 {[%clk 0:01:31.3]} 45. Kg2 {[%clk 0:01:08.4]} 45...
Rd3 {[%clk 0:01:27.8]} 46. Rh1 {[%clk 0:01:03.3]} 46... g6 {[%clk 0:01:27.4]}
47. Rf1 {[%clk 0:01:04.8]} 47... Kd5 {[%clk 0:01:28.5]} 48. f5 {[%clk
0:01:05.4]} 48... Kxe5 {[%clk 0:01:28.7]} 49. fxg6 {[%clk 0:01:06.3]} 49... fxg6
{[%clk 0:01:30.6]} 50. Rf8 {[%clk 0:01:06.1]} 50... g5 {[%clk 0:01:31.4]} 51.
Rg8 {[%clk 0:01:04.9]} 51... Kf4 {[%clk 0:01:31.7]} 52. Rh8 {[%clk 0:01:03.4]}
52... Kg4 {[%clk 0:01:32.6]} 53. Rc8 {[%clk 0:01:01.5]} 53... Rd2+ {[%clk
0:01:33.5]} 54. Kg1 {[%clk 0:01:02.5]} 54... Kh3 {[%clk 0:01:30.1]} 55. Rc3+
{[%clk 0:01:02.5]} 55... Kh4 {[%clk 0:01:31.3]} 56. Kh1 {[%clk 0:01:03]} 56...
g4 {[%clk 0:01:32.3]} 57. Kg1 {[%clk 0:01:03.9]} 57... g3 {[%clk 0:01:32.8]} 58.
Kf1 {[%clk 0:01:00.2]} 58... Kh3 {[%clk 0:01:32.8]} 59. Ke1 {[%clk 0:00:55.1]}
59... Ra2 {[%clk 0:01:32.1]} 60. Rc5 {[%clk 0:00:56.3]} 60... h4 {[%clk
0:01:29]} 61. Rg5 {[%clk 0:00:52.5]} 61... Kh2 {[%clk 0:01:27]} 62. Kf1 {[%clk
0:00:50.5]} 62... h3 {[%clk 0:01:26.9]} 0-1

[Event "*** Titled Tuesday Blitz"]
[Site "Chess.com"]
[Date "2019.11.05"]
[Round "4"]
[White "SaraciNderim"]
[Black "ChessWarrior7197"]
[Result "0-1"]
[WhiteElo "2812"]
[BlackElo "2950"]
[TimeControl "180+2"]
[EndTime "13:52:20 PST"]
[Termination "ChessWarrior7197 won on time"]

1. d4 {[%clk 0:03:01.9]} 1... Nf6 {[%clk 0:03:01]} 2. Nf3 {[%clk 0:03:02.8]}
2... e6 {[%clk 0:03:01.3]} 3. g3 {[%clk 0:03:03.8]} 3... b5 {[%clk 0:03:02.1]}
4. Bg2 {[%clk 0:03:05]} 4... Bb7 {[%clk 0:03:02.9]} 5. O-O {[%clk 0:03:06.5]}
5... c5 {[%clk 0:03:03.2]} 6. e3 {[%clk 0:03:03.7]} 6... Be7 {[%clk 0:03:03]} 7.
b3 {[%clk 0:03:03.9]} 7... O-O {[%clk 0:03:00.5]} 8. Bb2 {[%clk 0:03:04.8]} 8...
d5 {[%clk 0:03:00.8]} 9. dxc5 {[%clk 0:03:05.4]} 9... Bxc5 {[%clk 0:03:01.3]}
10. Nbd2 {[%clk 0:03:04.6]} 10... Nbd7 {[%clk 0:02:59.1]} 11. Ne5 {[%clk
0:03:04.7]} 11... Nxe5 {[%clk 0:02:58.7]} 12. Bxe5 {[%clk 0:03:06.6]} 12... b4
{[%clk 0:02:59.5]} 13. c3 {[%clk 0:03:06.1]} 13... bxc3 {[%clk 0:02:59.8]} 14.
Bxc3 {[%clk 0:03:06.8]} 14... Be7 {[%clk 0:03:00.5]} 15. b4 {[%clk 0:03:05.4]}
15... Rc8 {[%clk 0:03:00.6]} 16. Qb3 {[%clk 0:03:05.3]} 16... Nd7 {[%clk
0:02:49.6]} 17. a4 {[%clk 0:03:02.5]} 17... Nb6 {[%clk 0:02:41.2]} 18. a5 {[%clk
0:02:57.5]} 18... Nc4 {[%clk 0:02:41.5]} 19. Nxc4 {[%clk 0:02:54.6]} 19... dxc4
{[%clk 0:02:43.4]} 20. Qb2 {[%clk 0:02:51.5]} 20... Bxg2 {[%clk 0:02:43.3]} 21.
Kxg2 {[%clk 0:02:53.4]} 21... Bf6 {[%clk 0:02:32.1]} 22. Bxf6 {[%clk 0:02:51.9]}
22... gxf6 {[%clk 0:02:32.8]} 23. Rfd1 {[%clk 0:02:48.8]} 23... Qe7 {[%clk
0:02:32.6]} 24. Qc3 {[%clk 0:02:40]} 24... Rfd8 {[%clk 0:02:31.2]} 25. Rac1
{[%clk 0:02:33.5]} 25... Kg7 {[%clk 0:02:27.9]} 26. h3 {[%clk 0:02:17.7]} 26...
Qb7+ {[%clk 0:02:27.7]} 27. Kg1 {[%clk 0:02:15.1]} 27... Qe4 {[%clk 0:02:20.5]}
28. b5 {[%clk 0:01:20.7]} 28... Rxd1+ {[%clk 0:01:49.3]} 29. Rxd1 {[%clk
0:01:22.6]} 29... Rc5 {[%clk 0:01:49.2]} 30. Rd4 {[%clk 0:01:09.5]} 30... Qb1+
{[%clk 0:01:48.4]} 31. Kg2 {[%clk 0:01:10.1]} 31... Qxb5 {[%clk 0:01:46.5]} 32.
Rg4+ {[%clk 0:01:05.4]} 32... Rg5 {[%clk 0:01:46.6]} 33. Rxc4 {[%clk 0:01:04]}
33... Qd5+ {[%clk 0:01:41.2]} 34. Kh2 {[%clk 0:01:02]} 34... Qxa5 {[%clk
0:01:36.8]} 35. Qd4 {[%clk 0:00:48.5]} 35... h5 {[%clk 0:01:21.1]} 36. Rc8
{[%clk 0:00:47.5]} 36... Rd5 {[%clk 0:00:58]} 37. Qc4 {[%clk 0:00:38.4]} 37...
Qd2 {[%clk 0:00:54.3]} 38. Qc2 {[%clk 0:00:28.2]} 38... Qe1 {[%clk 0:00:53]} 39.
Kg2 {[%clk 0:00:03.5]} 39... Rd2 {[%clk 0:00:51.8]} 0-1

[Event "*** Titled Tuesday Blitz"]
[Site "Chess.com"]
[Date "2019.11.05"]
[Round "4"]
[White "KhalilMousavi77"]
[Black "mikhaillushenkov"]
[Result "1-0"]
[WhiteElo "2899"]
[BlackElo "2704"]
[TimeControl "180+2"]
[EndTime "13:52:26 PST"]
[Termination "KhalilMousavi77 won by resignation"]

1. c4 {[%clk 0:03:01.8]} 1... e6 {[%clk 0:03:00.7]} 2. Nf3 {[%clk 0:03:02.5]}
2... d5 {[%clk 0:03:02.6]} 3. d4 {[%clk 0:03:02.9]} 3... Nf6 {[%clk 0:03:02.9]}
4. e3 {[%clk 0:03:04.5]} 4... c6 {[%clk 0:03:03.2]} 5. Nbd2 {[%clk 0:03:05.4]}
5... c5 {[%clk 0:03:03.6]} 6. dxc5 {[%clk 0:03:05.5]} 6... Bxc5 {[%clk
0:03:01.7]} 7. Qc2 {[%clk 0:03:06.8]} 7... Be7 {[%clk 0:02:40.2]} 8. Bd3 {[%clk
0:02:59.5]} 8... Nc6 {[%clk 0:02:40.1]} 9. a3 {[%clk 0:03:01]} 9... d4 {[%clk
0:02:25]} 10. exd4 {[%clk 0:02:55.5]} 10... Nxd4 {[%clk 0:02:26.9]} 11. Nxd4
{[%clk 0:02:57.1]} 11... Qxd4 {[%clk 0:02:28.4]} 12. Nf3 {[%clk 0:02:58.9]}
12... Qd8 {[%clk 0:02:14.2]} 13. O-O {[%clk 0:02:58.8]} 13... Qc7 {[%clk
0:02:10.7]} 14. b3 {[%clk 0:02:57.9]} 14... b6 {[%clk 0:02:08.8]} 15. Bb2 {[%clk
0:02:56]} 15... Bb7 {[%clk 0:02:10]} 16. Ne5 {[%clk 0:02:57.2]} 16... Rd8 {[%clk
0:02:06]} 17. Rad1 {[%clk 0:02:49]} 17... O-O {[%clk 0:02:04.8]} 18. Rfe1 {[%clk
0:02:38.9]} 18... a5 {[%clk 0:02:02.9]} 19. h3 {[%clk 0:02:24.5]} 19... Bc5
{[%clk 0:02:02.3]} 20. Qc3 {[%clk 0:02:15.6]} 20... Kh8 {[%clk 0:01:51.2]} 21.
Bb1 {[%clk 0:02:16]} 21... Rxd1 {[%clk 0:01:41.7]} 22. Rxd1 {[%clk 0:02:17.9]}
22... Be7 {[%clk 0:01:24.3]} 23. Qg3 {[%clk 0:02:17.6]} 23... Kg8 {[%clk
0:01:20.4]} 24. Nd7 {[%clk 0:01:48.7]} 24... Qxg3 {[%clk 0:01:19.1]} 25. fxg3
{[%clk 0:01:49.3]} 25... Nxd7 {[%clk 0:01:18.4]} 26. Rxd7 {[%clk 0:01:49.1]}
26... Bc5+ {[%clk 0:01:20.1]} 27. Bd4 {[%clk 0:01:48.1]} 27... Bc6 {[%clk
0:01:20.7]} 28. Bxc5 {[%clk 0:01:41.5]} 28... Bxd7 {[%clk 0:01:21.5]} 29. Bxf8
{[%clk 0:01:39.8]} 29... Kxf8 {[%clk 0:01:23.4]} 30. g4 {[%clk 0:01:35.7]} 30...
h6 {[%clk 0:01:24.7]} 31. Kf2 {[%clk 0:01:33.8]} 31... Ke7 {[%clk 0:01:25.8]}
32. b4 {[%clk 0:01:29.2]} 32... axb4 {[%clk 0:01:26.8]} 33. axb4 {[%clk
0:01:31.1]} 33... Kd6 {[%clk 0:01:28.3]} 34. Ke3 {[%clk 0:01:30.4]} 34... g5
{[%clk 0:01:28.8]} 35. Kd4 {[%clk 0:01:24.7]} 35... e5+ {[%clk 0:01:22.9]} 36.
Ke3 {[%clk 0:01:22.3]} 36... f6 {[%clk 0:01:21.7]} 37. Be4 {[%clk 0:01:09.5]}
37... Ba4 {[%clk 0:01:21.8]} 38. Kd3 {[%clk 0:00:59.1]} 38... Be8 {[%clk
0:01:22.3]} 39. Kc3 {[%clk 0:00:58.3]} 39... h5 {[%clk 0:01:22.8]} 40. gxh5
{[%clk 0:00:55.9]} 40... Bxh5 {[%clk 0:01:24.7]} 41. Bf5 {[%clk 0:00:55.9]}
41... Bf7 {[%clk 0:01:23.8]} 42. g3 {[%clk 0:00:55.1]} 42... Bh5 {[%clk
0:01:16.6]} 43. h4 {[%clk 0:00:55.5]} 43... gxh4 {[%clk 0:01:17.7]} 44. gxh4
{[%clk 0:00:56.7]} 44... Bf3 {[%clk 0:01:17.3]} 45. Kd3 {[%clk 0:00:56.2]} 45...
Bh5 {[%clk 0:01:17.7]} 46. Ke3 {[%clk 0:00:53.5]} 46... Bd1 {[%clk 0:01:17.8]}
47. Bg6 {[%clk 0:00:50.7]} 47... Ke6 {[%clk 0:01:15.3]} 48. h5 {[%clk
0:00:49.2]} 48... f5 {[%clk 0:01:16.7]} 49. h6 {[%clk 0:00:48.7]} 49... f4+
{[%clk 0:01:18.1]} 50. Kd2 {[%clk 0:00:47.9]} 1-0

[Event "*** Titled Tuesday Blitz"]
[Site "Chess.com"]
[Date "2019.11.05"]
[Round "4"]
[White "Gordima"]
[Black "cool4chess"]
[Result "0-1"]
[WhiteElo "2774"]
[BlackElo "2562"]
[TimeControl "180+2"]
[EndTime "13:52:27 PST"]
[Termination "cool4chess won by checkmate"]

1. e4 {[%clk 0:03:01.9]} 1... e5 {[%clk 0:03:00.1]} 2. Bc4 {[%clk 0:03:02.5]}
2... Nf6 {[%clk 0:02:58.3]} 3. d3 {[%clk 0:03:03.8]} 3... Nc6 {[%clk 0:02:57.3]}
4. Nf3 {[%clk 0:03:02.5]} 4... Bc5 {[%clk 0:02:55.9]} 5. c3 {[%clk 0:03:02.3]}
5... a6 {[%clk 0:02:51.9]} 6. a4 {[%clk 0:03:03]} 6... O-O {[%clk 0:02:49.3]} 7.
O-O {[%clk 0:03:03.8]} 7... h6 {[%clk 0:02:46.8]} 8. Re1 {[%clk 0:03:03.8]} 8...
d6 {[%clk 0:02:47.6]} 9. Nbd2 {[%clk 0:03:03.6]} 9... Be6 {[%clk 0:02:45.9]} 10.
Bxe6 {[%clk 0:02:51.6]} 10... fxe6 {[%clk 0:02:47.8]} 11. Nf1 {[%clk 0:02:53]}
11... d5 {[%clk 0:02:46.1]} 12. Ng3 {[%clk 0:02:51.3]} 12... Qd7 {[%clk
0:02:24.3]} 13. Qc2 {[%clk 0:02:48.8]} 13... Rae8 {[%clk 0:02:19.2]} 14. h3
{[%clk 0:02:44.1]} 14... Nh7 {[%clk 0:02:09.8]} 15. Be3 {[%clk 0:02:38.9]} 15...
d4 {[%clk 0:02:11]} 16. cxd4 {[%clk 0:02:24.5]} 16... Bxd4 {[%clk 0:02:11.7]}
17. Nxd4 {[%clk 0:02:09.1]} 17... exd4 {[%clk 0:02:06.5]} 18. Bd2 {[%clk
0:02:07.2]} 18... Qf7 {[%clk 0:01:55.6]} 19. f4 {[%clk 0:02:03.8]} 19... g5
{[%clk 0:01:20.2]} 20. Rf1 {[%clk 0:02:01.5]} 20... gxf4 {[%clk 0:01:07.4]} 21.
Rxf4 {[%clk 0:02:03.4]} 21... Qe7 {[%clk 0:00:53.1]} 22. Rg4+ {[%clk 0:02:03.3]}
22... Kh8 {[%clk 0:00:54.6]} 23. Bxh6 {[%clk 0:01:58.3]} 23... Rg8 {[%clk
0:00:55.4]} 24. Nh5 {[%clk 0:01:21.5]} 24... Rxg4 {[%clk 0:00:50.6]} 25. hxg4
{[%clk 0:01:23.4]} 25... Rg8 {[%clk 0:00:51.2]} 26. Rf1 {[%clk 0:01:08.7]} 26...
Rxg4 {[%clk 0:00:46]} 27. Qe2 {[%clk 0:00:41.7]} 27... Qh4 {[%clk 0:00:35.3]}
28. Nf4 {[%clk 0:00:13.7]} 28... Ne5 {[%clk 0:00:35.1]} 29. Nxe6 {[%clk
0:00:04.5]} 29... Qxh6 {[%clk 0:00:35]} 30. Nxd4 {[%clk 0:00:03.4]} 30... Rh4
{[%clk 0:00:32.1]} 31. Nf5 {[%clk 0:00:04.6]} 31... Rh1+ {[%clk 0:00:30.5]} 32.
Kf2 {[%clk 0:00:06]} 32... Qf4+ {[%clk 0:00:22.8]} 33. Ke1 {[%clk 0:00:07.4]}
33... Qc1+ {[%clk 0:00:17.8]} 34. Kf2 {[%clk 0:00:08.8]} 34... Ng4+ {[%clk
0:00:07.1]} 35. Qxg4 {[%clk 0:00:05.2]} 35... Rxf1+ {[%clk 0:00:07.5]} 36. Kg3
{[%clk 0:00:03.8]} 36... Qe1+ {[%clk 0:00:09]} 37. Kh3 {[%clk 0:00:03.7]} 37...
Rh1# {[%clk 0:00:10.6]} 0-1

[Event "*** Titled Tuesday Blitz"]
[Site "Chess.com"]
[Date "2019.11.05"]
[Round "4"]
[White "13MiRacLe"]
[Black "Knight8700"]
[Result "1-0"]
[WhiteElo "2613"]
[BlackElo "2404"]
[TimeControl "180+2"]
[EndTime "13:52:32 PST"]
[Termination "13MiRacLe won by resignation"]

1. e4 {[%clk 0:03:01.9]} 1... e5 {[%clk 0:03:01]} 2. Nf3 {[%clk 0:03:02.7]} 2...
Nc6 {[%clk 0:03:02.3]} 3. Bb5 {[%clk 0:03:04.3]} 3... Nf6 {[%clk 0:03:03.3]} 4.
O-O {[%clk 0:03:02]} 4... d6 {[%clk 0:02:53.8]} 5. d4 {[%clk 0:02:56.6]} 5...
exd4 {[%clk 0:02:53]} 6. Nxd4 {[%clk 0:02:57]} 6... Bd7 {[%clk 0:02:54.1]} 7.
Bxc6 {[%clk 0:02:54.7]} 7... bxc6 {[%clk 0:02:53.7]} 8. Qf3 {[%clk 0:02:53.6]}
8... c5 {[%clk 0:02:50.3]} 9. Nf5 {[%clk 0:02:46.2]} 9... g6 {[%clk 0:02:47]}
10. Bg5 {[%clk 0:02:39.8]} 10... gxf5 {[%clk 0:02:36.8]} 11. e5 {[%clk
0:02:40.5]} 11... Rg8 {[%clk 0:01:26.4]} 12. Bxf6 {[%clk 0:02:38.7]} 12... Qc8
{[%clk 0:01:23.1]} 13. Nc3 {[%clk 0:02:27.5]} 13... Rb8 {[%clk 0:01:20]} 14.
Rfe1 {[%clk 0:02:18.7]} 14... Be6 {[%clk 0:01:14.7]} 15. Nd5 {[%clk 0:01:58.1]}
15... c6 {[%clk 0:00:56]} 16. Nf4 {[%clk 0:01:02.7]} 16... d5 {[%clk 0:00:54.4]}
17. b3 {[%clk 0:01:03.8]} 17... Rb4 {[%clk 0:00:39.9]} 18. c4 {[%clk 0:01:02.7]}
18... dxc4 {[%clk 0:00:39.1]} 19. Rad1 {[%clk 0:01:01.6]} 19... Be7 {[%clk
0:00:39.2]} 20. Nh5 {[%clk 0:00:53.9]} 20... cxb3 {[%clk 0:00:35.7]} 21. axb3
{[%clk 0:00:51.2]} 21... Rxb3 {[%clk 0:00:33.4]} 22. Qf4 {[%clk 0:00:30.4]}
22... Rg6 {[%clk 0:00:23.2]} 23. Bxe7 {[%clk 0:00:29.7]} 23... Kxe7 {[%clk
0:00:24.2]} 24. Nf6 {[%clk 0:00:30.6]} 24... Kf8 {[%clk 0:00:25.4]} 25. Qh4
{[%clk 0:00:28.5]} 25... h6 {[%clk 0:00:24]} 26. Nh5 {[%clk 0:00:18.8]} 26...
Rg5 {[%clk 0:00:17.8]} 27. Nf4 {[%clk 0:00:18]} 27... Kg7 {[%clk 0:00:17.6]} 28.
Rd6 {[%clk 0:00:19.1]} 28... Rb4 {[%clk 0:00:17.7]} 29. g3 {[%clk 0:00:19.3]}
29... a5 {[%clk 0:00:14.9]} 30. Red1 {[%clk 0:00:18.1]} 30... Rd4 {[%clk
0:00:09.9]} 31. R1xd4 {[%clk 0:00:16.1]} 31... cxd4 {[%clk 0:00:11.8]} 32. Nxe6+
{[%clk 0:00:16.6]} 32... fxe6 {[%clk 0:00:13]} 33. f4 {[%clk 0:00:18.2]} 33...
Rg6 {[%clk 0:00:12.8]} 34. Qe7+ {[%clk 0:00:18.8]} 34... Kh8 {[%clk 0:00:12.7]}
35. Rd8+ {[%clk 0:00:19.9]} 35... Qxd8 {[%clk 0:00:11.9]} 36. Qxd8+ {[%clk
0:00:21.8]} 36... Rg8 {[%clk 0:00:12.6]} 37. Qxd4 {[%clk 0:00:22.7]} 37... Ra8
{[%clk 0:00:14.1]} 38. Qa4 {[%clk 0:00:23.6]} 38... c5 {[%clk 0:00:15]} 39. Kf2
{[%clk 0:00:24.5]} 39... c4 {[%clk 0:00:16]} 40. Ke2 {[%clk 0:00:26]} 40... c3
{[%clk 0:00:12.7]} 41. Kd3 {[%clk 0:00:26.7]} 41... Rc8 {[%clk 0:00:14.1]} 42.
Kc2 {[%clk 0:00:27.6]} 1-0

[Event "*** Titled Tuesday Blitz"]
[Site "Chess.com"]
[Date "2019.11.05"]
[Round "4"]
[White "Manukyan_Artak"]
[Black "littleplotkin"]
[Result "1/2-1/2"]
[WhiteElo "2388"]
[BlackElo "2652"]
[TimeControl "180+2"]
[EndTime "13:52:32 PST"]
[Termination "Game drawn by repetition"]

1. e4 {[%clk 0:03:01.9]} 1... c5 {[%clk 0:02:59.3]} 2. Nf3 {[%clk 0:03:02]} 2...
Nc6 {[%clk 0:03:01.2]} 3. c3 {[%clk 0:03:02.8]} 3... Nf6 {[%clk 0:03:00.8]} 4.
e5 {[%clk 0:03:04]} 4... Nd5 {[%clk 0:03:00.3]} 5. d4 {[%clk 0:03:05.9]} 5...
cxd4 {[%clk 0:03:00.1]} 6. cxd4 {[%clk 0:03:07.8]} 6... d6 {[%clk 0:03:01.1]} 7.
Nc3 {[%clk 0:03:09.7]} 7... Nxc3 {[%clk 0:03:01.9]} 8. bxc3 {[%clk 0:03:11.6]}
8... dxe5 {[%clk 0:03:03.5]} 9. d5 {[%clk 0:03:12.6]} 9... e4 {[%clk 0:03:02.3]}
10. Ng5 {[%clk 0:03:13.1]} 10... Ne5 {[%clk 0:03:00.2]} 11. Nxe4 {[%clk
0:03:02.1]} 11... e6 {[%clk 0:02:55.1]} 12. Bf4 {[%clk 0:02:39]} 12... Qxd5
{[%clk 0:02:45.9]} 13. Qxd5 {[%clk 0:02:37.9]} 13... exd5 {[%clk 0:02:47.8]} 14.
Bxe5 {[%clk 0:02:34.6]} 14... dxe4 {[%clk 0:02:49.1]} 15. Bb5+ {[%clk
0:02:34.9]} 15... Bd7 {[%clk 0:02:50.3]} 16. Bxd7+ {[%clk 0:02:33.5]} 16... Kxd7
{[%clk 0:02:52.2]} 17. O-O-O+ {[%clk 0:02:32.3]} 17... Ke6 {[%clk 0:02:52.3]}
18. Bd4 {[%clk 0:02:33.1]} 18... Rc8 {[%clk 0:02:51.9]} 19. Kb2 {[%clk
0:02:31.7]} 19... Bc5 {[%clk 0:02:52.2]} 20. Rhe1 {[%clk 0:02:24.6]} 20... f5
{[%clk 0:02:45.6]} 21. f3 {[%clk 0:02:19.8]} 21... Bxd4 {[%clk 0:02:31.7]} 22.
Rxd4 {[%clk 0:02:20.1]} 22... Rhd8 {[%clk 0:02:33.1]} 23. fxe4 {[%clk 0:02:15]}
23... f4 {[%clk 0:02:28.5]} 24. Red1 {[%clk 0:02:03.5]} 24... Rxd4 {[%clk
0:02:23.9]} 25. cxd4 {[%clk 0:02:04.3]} 25... g5 {[%clk 0:02:24.2]} 26. Kb3
{[%clk 0:02:03]} 26... g4 {[%clk 0:02:23.9]} 27. Rf1 {[%clk 0:02:01.6]} 27...
Rf8 {[%clk 0:02:24.4]} 28. Kc4 {[%clk 0:02:01.5]} 28... h5 {[%clk 0:02:25.3]}
29. Kd3 {[%clk 0:01:58.8]} 29... h4 {[%clk 0:02:24.9]} 30. a4 {[%clk 0:01:50.3]}
30... b6 {[%clk 0:02:25.4]} 31. Rf2 {[%clk 0:01:46.9]} 31... Kd6 {[%clk
0:02:24.4]} 32. Rf1 {[%clk 0:01:45.9]} 32... Kc6 {[%clk 0:02:24.1]} 33. Kc4
{[%clk 0:01:42.1]} 33... Kd6 {[%clk 0:02:23.9]} 34. Kd3 {[%clk 0:01:41.2]} 34...
a6 {[%clk 0:02:24.8]} 35. Kc4 {[%clk 0:01:38.5]} 35... Ke6 {[%clk 0:02:06.9]}
36. Rf2 {[%clk 0:01:28.7]} 36... Rf7 {[%clk 0:02:03.8]} 37. Rf1 {[%clk
0:01:28.5]} 37... Kd6 {[%clk 0:01:58.4]} 38. Rf2 {[%clk 0:01:26.9]} 38... Rf8
{[%clk 0:01:58.4]} 39. Rf1 {[%clk 0:01:27.9]} 39... f3 {[%clk 0:01:53.6]} 40.
gxf3 {[%clk 0:01:27.2]} 40... gxf3 {[%clk 0:01:55.5]} 41. e5+ {[%clk 0:01:12.1]}
41... Ke6 {[%clk 0:01:53.9]} 42. Kd3 {[%clk 0:01:13.1]} 42... b5 {[%clk
0:01:47]} 43. axb5 {[%clk 0:01:13.1]} 43... axb5 {[%clk 0:01:48.9]} 44. Ke4
{[%clk 0:01:12.5]} 44... f2 {[%clk 0:01:48.7]} 45. d5+ {[%clk 0:01:13.2]} 45...
Ke7 {[%clk 0:01:41.9]} 46. Ke3 {[%clk 0:01:08.8]} 46... b4 {[%clk 0:01:37.5]}
47. Kd3 {[%clk 0:00:48.6]} 47... b3 {[%clk 0:01:34.7]} 48. Kc3 {[%clk
0:00:49.1]} 48... Rf3+ {[%clk 0:01:33.9]} 49. Kb2 {[%clk 0:00:49.9]} 49... Kd7
{[%clk 0:01:29.6]} 50. Ka3 {[%clk 0:00:50.7]} 50... Kc7 {[%clk 0:01:29.7]} 51.
Kb2 {[%clk 0:00:51.7]} 51... Kb6 {[%clk 0:01:29.2]} 52. e6 {[%clk 0:00:52.9]}
52... Kc7 {[%clk 0:01:30.6]} 53. Kc1 {[%clk 0:00:40.8]} 53... Kd6 {[%clk
0:01:30]} 54. Kd2 {[%clk 0:00:42]} 54... Rf5 {[%clk 0:01:27.1]} 55. Kc3 {[%clk
0:00:36.2]} 55... Rf3+ {[%clk 0:01:22.7]} 56. Kd2 {[%clk 0:00:37.2]} 56... Rf8
{[%clk 0:01:03.3]} 57. Kc3 {[%clk 0:00:34.4]} 57... Rf3+ {[%clk 0:01:00.2]} 58.
Kd2 {[%clk 0:00:35.1]} 1/2-1/2